[Event "Titled Tuesday Blitz February 07 Early 2023"]
[White "Sukandar, Irine Kharisma"]
[Black "Taspinar, Yanki"]
[WhiteFideId "7101937"]
[BlackFideId "34561188"]
[WhiteElo "2390"]
[BlackElo "2262"]
[Result "1-0"]
[Round "07"]
[TimeControl "180+2"]
[Date "2023.02.07"]
[WhiteClock "0:00:03"]
[BlackClock "0:00:01"]

1. d4 {[%clk 0:03:00]}  Nf6 {[%clk 0:03:00]} 2. Bf4 {[%clk 0:03:00]}  c6 {[%clk 0:03:00]} 3. Nd2 {[%clk 0:02:51]}  d5 {[%clk 0:02:58]} 4. e3 {[%clk 0:02:51]}  g6 {[%clk 0:02:58]} 5. Bd3 {[%clk 0:02:46]}  Bg7 {[%clk 0:02:59]} 6. c3 {[%clk 0:02:44]}  O-O {[%clk 0:02:58]} 7. Qe2 {[%clk 0:02:45]}  Nbd7 {[%clk 0:02:54]} 8. h3 {[%clk 0:02:44]}  Nh5 {[%clk 0:02:52]} 9. Bh2 {[%clk 0:02:43]}  e5 {[%clk 0:02:52]} 10. g4 {[%clk 0:02:34]}  e4 {[%clk 0:02:28]} 11. gxh5 {[%clk 0:02:33]}  exd3 {[%clk 0:02:28]} 12. Qxd3 {[%clk 0:02:33]}  Nf6 {[%clk 0:02:29]} 13. hxg6 {[%clk 0:02:24]}  hxg6 {[%clk 0:02:30]} 14. Ngf3 {[%clk 0:02:19]}  Bxh3 {[%clk 0:02:21]} 15. Be5 {[%clk 0:02:17]}  Bf5 {[%clk 0:02:20]} 16. Qe2 {[%clk 0:02:17]}  Re8 {[%clk 0:02:17]} 17. Nh4 {[%clk 0:02:12]}  Be6 {[%clk 0:02:07]} 18. O-O-O {[%clk 0:02:11]}  a5 {[%clk 0:01:57]} 19. Rdg1 {[%clk 0:02:10]}  Kf8 {[%clk 0:01:12]} 20. f4 {[%clk 0:02:00]}  Qd7 {[%clk 0:01:02]} 21. f5 {[%clk 0:01:18]}  Bxf5 {[%clk 0:00:58]} 22. Nxf5 {[%clk 0:01:18]}  Qxf5 {[%clk 0:00:58]} 23. Rf1 {[%clk 0:01:19]}  Qe6 {[%clk 0:00:40]} 24. Qg2 {[%clk 0:01:08]}  Nd7 {[%clk 0:00:27]} 25. Rh7 {[%clk 0:00:39]}  Nxe5 {[%clk 0:00:22]} 26. dxe5 {[%clk 0:00:39]}  Kg8 {[%clk 0:00:12]} 27. Rfh1 {[%clk 0:00:33]}  Qxe5 {[%clk 0:00:08]} 28. Qh3 {[%clk 0:00:30]}  a4 {[%clk 0:00:06]} 29. e4 {[%clk 0:00:16]}  dxe4 {[%clk 0:00:05]} 30. Nc4 {[%clk 0:00:07]}  Qf6 {[%clk 0:00:05]} 31. Rf1 {[%clk 0:00:06]}  Qg5+ {[%clk 0:00:05]} 32. Kb1 {[%clk 0:00:07]}  a3 {[%clk 0:00:05]} 33. Nd6 {[%clk 0:00:06]}  Re7 {[%clk 0:00:04]} 34. Nxf7 {[%clk 0:00:03]}  Rxf7 {[%clk 0:00:04]} 35. Rxf7 {[%clk 0:00:04]}  Kxf7 {[%clk 0:00:04]} 36. Qd7+ {[%clk 0:00:05]}  Qe7 {[%clk 0:00:04]} 37. Rxg7+ {[%clk 0:00:04]}  Kxg7 {[%clk 0:00:05]} 38. Qxe7+ {[%clk 0:00:05]}  Kh6 {[%clk 0:00:06]} 39. Qxe4 {[%clk 0:00:05]}  axb2 {[%clk 0:00:06]} 40. Qf4+ {[%clk 0:00:06]}  Kg7 {[%clk 0:00:05]} 41. Qc7+ {[%clk 0:00:06]}  Kh6 {[%clk 0:00:06]} 42. Qxb7 {[%clk 0:00:07]}  Rg8 {[%clk 0:00:06]} 43. Qxc6 {[%clk 0:00:07]}  Kh7 {[%clk 0:00:05]} 44. Qh1+ {[%clk 0:00:08]}  Kg7 {[%clk 0:00:04]} 45. Kxb2 {[%clk 0:00:08]}  g5 {[%clk 0:00:05]} 46. Qd5 {[%clk 0:00:08]}  Kh7 {[%clk 0:00:04]} 47. Qf7+ {[%clk 0:00:08]}  Rg7 {[%clk 0:00:04]} 48. Qh5+ {[%clk 0:00:09]}  Kg8 {[%clk 0:00:05]} 49. Qg4 {[%clk 0:00:09]}  Kh7 {[%clk 0:00:05]} 50. a4 {[%clk 0:00:09]}  Kg6 {[%clk 0:00:05]} 51. a5 {[%clk 0:00:09]}  Ra7 {[%clk 0:00:06]} 52. Qe6+ {[%clk 0:00:08]}  Kh5 {[%clk 0:00:06]} 53. a6 {[%clk 0:00:08]}  g4 {[%clk 0:00:05]} 54. Qb6 {[%clk 0:00:08]}  Rg7 {[%clk 0:00:02]} 55. a7 {[%clk 0:00:08]}  Rg8 {[%clk 0:00:02]} 56. Qb5+ {[%clk 0:00:06]}  Kh4 {[%clk 0:00:02]} 57. Qc4 {[%clk 0:00:05]}  Ra8 {[%clk 0:00:01]} 58. Qa4 {[%clk 0:00:03]}  Kh3 {[%clk 0:00:01]} 59. Qd7 {[%clk 0:00:03]} 1-0


[Site "https://www.chess.com"]

[Event "Titled Tuesday Blitz February 07 Early 2023"]
[White "Akobian, Varuzhan"]
[Black "Mendez Fortes, Eduardo Jesus"]
[WhiteFideId "13300580"]
[BlackFideId "3502376"]
[WhiteElo "2591"]
[BlackElo "2250"]
[Result "1-0"]
[Round "07"]
[TimeControl "180+2"]
[Date "2023.02.07"]
[WhiteClock "0:00:21"]
[BlackClock "0:00:39"]

1. d4 {[%clk 0:03:00]}  Nf6 {[%clk 0:02:59]} 2. c4 {[%clk 0:03:00]}  e6 {[%clk 0:03:00]} 3. Nf3 {[%clk 0:02:59]}  d5 {[%clk 0:03:00]} 4. cxd5 {[%clk 0:02:59]}  exd5 {[%clk 0:03:00]} 5. Nc3 {[%clk 0:03:00]}  Bb4 {[%clk 0:02:57]} 6. Qa4+ {[%clk 0:02:59]}  Nc6 {[%clk 0:02:57]} 7. Bg5 {[%clk 0:02:59]}  O-O {[%clk 0:02:56]} 8. e3 {[%clk 0:03:00]}  h6 {[%clk 0:02:56]} 9. Bxf6 {[%clk 0:02:59]}  Qxf6 {[%clk 0:02:57]} 10. Rc1 {[%clk 0:02:59]}  Rd8 {[%clk 0:02:56]} 11. a3 {[%clk 0:02:59]}  Bf8 {[%clk 0:02:56]} 12. Bd3 {[%clk 0:02:58]}  a6 {[%clk 0:02:56]} 13. O-O {[%clk 0:02:57]}  Ne7 {[%clk 0:02:56]} 14. Ne5 {[%clk 0:02:54]}  Ng6 {[%clk 0:02:43]} 15. Nxg6 {[%clk 0:02:51]}  fxg6 {[%clk 0:02:43]} 16. Qb3 {[%clk 0:02:50]}  c6 {[%clk 0:02:41]} 17. Na4 {[%clk 0:02:16]}  Rb8 {[%clk 0:02:30]} 18. Bxa6 {[%clk 0:02:11]}  Bh3 {[%clk 0:02:26]} 19. Be2 {[%clk 0:02:09]}  Qg5 {[%clk 0:02:21]} 20. Bf3 {[%clk 0:02:06]}  Bd6 {[%clk 0:02:21]} 21. Kh1 {[%clk 0:02:02]}  Rf8 {[%clk 0:02:19]} 22. e4 {[%clk 0:01:37]}  Qf4 {[%clk 0:02:09]} 23. e5 {[%clk 0:01:35]}  Be7 {[%clk 0:02:04]} 24. gxh3 {[%clk 0:01:33]}  Qxf3+ {[%clk 0:02:03]} 25. Qxf3 {[%clk 0:01:33]}  Rxf3 {[%clk 0:02:04]} 26. Kg2 {[%clk 0:01:27]}  Rb3 {[%clk 0:02:03]} 27. Rc3 {[%clk 0:01:21]}  Rb5 {[%clk 0:02:03]} 28. b4 {[%clk 0:01:18]}  Ra8 {[%clk 0:02:01]} 29. Nc5 {[%clk 0:01:11]}  Bxc5 {[%clk 0:01:59]} 30. dxc5 {[%clk 0:01:08]}  Kf7 {[%clk 0:01:58]} 31. f4 {[%clk 0:01:04]}  Ke6 {[%clk 0:01:57]} 32. Kf3 {[%clk 0:01:02]}  b6 {[%clk 0:01:53]} 33. cxb6 {[%clk 0:01:00]}  Rxb6 {[%clk 0:01:54]} 34. Rfc1 {[%clk 0:01:00]}  Kd7 {[%clk 0:01:54]} 35. Ke3 {[%clk 0:00:57]}  Rba6 {[%clk 0:01:54]} 36. Kd4 {[%clk 0:00:57]}  Rf8 {[%clk 0:01:47]} 37. Rf1 {[%clk 0:00:51]}  Rfa8 {[%clk 0:01:27]} 38. Rg1 {[%clk 0:00:47]}  Ke7 {[%clk 0:01:19]} 39. Rgg3 {[%clk 0:00:41]}  Kf7 {[%clk 0:01:18]} 40. h4 {[%clk 0:00:41]}  Rb8 {[%clk 0:01:15]} 41. Rce3 {[%clk 0:00:32]}  Rb5 {[%clk 0:01:09]} 42. e6+ {[%clk 0:00:32]}  Ke7 {[%clk 0:00:59]} 43. Rxg6 {[%clk 0:00:31]}  c5+ {[%clk 0:00:59]} 44. bxc5 {[%clk 0:00:29]}  Ra4+ {[%clk 0:00:59]} 45. Kxd5 {[%clk 0:00:29]}  Rxf4 {[%clk 0:00:59]} 46. Rxg7+ {[%clk 0:00:29]}  Ke8 {[%clk 0:00:59]} 47. e7 {[%clk 0:00:26]}  Rxc5+ {[%clk 0:00:43]} 48. Kxc5 {[%clk 0:00:25]}  Rf5+ {[%clk 0:00:44]} 49. Kd6 {[%clk 0:00:23]}  Rf6+ {[%clk 0:00:41]} 50. Re6 {[%clk 0:00:22]}  h5 {[%clk 0:00:39]} 51. Rg8+ {[%clk 0:00:21]} 1-0


[Site "https://www.chess.com"]

[Event "Titled Tuesday Blitz February 07 Early 2023"]
[White "Skvortsov, Andrei"]
[Black "Bagwe Gaurang"]
[WhiteFideId "24108600"]
[BlackFideId "45039895"]
[WhiteElo "2313"]
[BlackElo "2067"]
[Result "0-1"]
[Round "07"]
[TimeControl "180+2"]
[Date "2023.02.07"]
[WhiteClock "0:01:27"]
[BlackClock "0:00:59"]

1. d4 {[%clk 0:03:00]}  d5 {[%clk 0:02:59]} 2. c4 {[%clk 0:02:56]}  e6 {[%clk 0:02:59]} 3. Nc3 {[%clk 0:02:56]}  Nf6 {[%clk 0:02:59]} 4. cxd5 {[%clk 0:02:54]}  Nxd5 {[%clk 0:02:53]} 5. e4 {[%clk 0:02:54]}  Nxc3 {[%clk 0:02:53]} 6. bxc3 {[%clk 0:02:55]}  c5 {[%clk 0:02:54]} 7. Nf3 {[%clk 0:02:54]}  cxd4 {[%clk 0:02:54]} 8. cxd4 {[%clk 0:02:55]}  Bb4+ {[%clk 0:02:55]} 9. Bd2 {[%clk 0:02:55]}  Bxd2+ {[%clk 0:02:56]} 10. Qxd2 {[%clk 0:02:56]}  O-O {[%clk 0:02:56]} 11. Be2 {[%clk 0:02:54]}  b6 {[%clk 0:02:53]} 12. O-O {[%clk 0:02:54]}  Bb7 {[%clk 0:02:54]} 13. Qe3 {[%clk 0:02:54]}  Nd7 {[%clk 0:02:54]} 14. Rfd1 {[%clk 0:02:46]}  Nf6 {[%clk 0:02:54]} 15. Nd2 {[%clk 0:02:45]}  Rc8 {[%clk 0:02:54]} 16. f3 {[%clk 0:02:45]}  Qd7 {[%clk 0:02:54]} 17. Nb3 {[%clk 0:02:45]}  Rfd8 {[%clk 0:02:53]} 18. Rac1 {[%clk 0:02:43]}  a5 {[%clk 0:02:53]} 19. Rxc8 {[%clk 0:02:43]}  Rxc8 {[%clk 0:02:53]} 20. Rc1 {[%clk 0:02:43]}  a4 {[%clk 0:02:51]} 21. Rxc8+ {[%clk 0:02:43]}  Qxc8 {[%clk 0:02:52]} 22. Nc1 {[%clk 0:02:40]}  Qc2 {[%clk 0:02:52]} 23. g4 {[%clk 0:02:30]}  h6 {[%clk 0:02:47]} 24. h4 {[%clk 0:02:28]}  Bc6 {[%clk 0:02:35]} 25. Kf1 {[%clk 0:02:27]}  b5 {[%clk 0:02:22]} 26. Ke1 {[%clk 0:02:22]}  b4 {[%clk 0:02:17]} 27. Qd2 {[%clk 0:02:22]}  Qb1 {[%clk 0:02:17]} 28. Bd3 {[%clk 0:02:21]}  Qa1 {[%clk 0:02:13]} 29. e5 {[%clk 0:02:12]}  Nd7 {[%clk 0:01:52]} 30. Qc2 {[%clk 0:02:10]}  Bxf3 {[%clk 0:01:49]} 31. Qc7 {[%clk 0:02:01]}  Nf8 {[%clk 0:01:41]} 32. Qc4 {[%clk 0:01:51]}  Bd5 {[%clk 0:01:38]} 33. Qc5 {[%clk 0:01:45]}  b3 {[%clk 0:01:36]} 34. axb3 {[%clk 0:01:46]}  axb3 {[%clk 0:01:36]} 35. Kd2 {[%clk 0:01:45]}  b2 {[%clk 0:01:31]} 36. Ne2 {[%clk 0:01:44]}  b1=Q {[%clk 0:01:29]} 37. Bxb1 {[%clk 0:01:43]}  Qxb1 {[%clk 0:01:29]} 38. g5 {[%clk 0:01:44]}  hxg5 {[%clk 0:01:27]} 39. hxg5 {[%clk 0:01:45]}  Qg6 {[%clk 0:01:26]} 40. Qe7 {[%clk 0:01:45]}  Qe4 {[%clk 0:01:22]} 41. Qc5 {[%clk 0:01:44]}  Ng6 {[%clk 0:01:19]} 42. Qc8+ {[%clk 0:01:44]}  Kh7 {[%clk 0:01:20]} 43. Qc3 {[%clk 0:01:43]}  Nf4 {[%clk 0:01:13]} 44. g6+ {[%clk 0:01:37]}  fxg6 {[%clk 0:01:05]} 45. Ng3 {[%clk 0:01:31]}  Qg2+ {[%clk 0:01:04]} 46. Ke1 {[%clk 0:01:31]}  Bf3 {[%clk 0:01:01]} 47. d5 {[%clk 0:01:28]}  Qxg3+ {[%clk 0:00:59]} 48. Kd2 {[%clk 0:01:28]}  Qg2+ {[%clk 0:00:59]} 49. Kc1 {[%clk 0:01:27]}  Ne2+ {[%clk 0:00:59]} 0-1


[Site "https://www.chess.com"]

[Event "Titled Tuesday Blitz February 07 Early 2023"]
[White "Balabayeva, Xeniya"]
[Black "Bulmaga, Irina"]
[WhiteFideId "13719688"]
[BlackFideId "13903063"]
[WhiteElo "2191"]
[BlackElo "2422"]
[Result "0-1"]
[Round "07"]
[TimeControl "180+2"]
[Date "2023.02.07"]
[WhiteClock "0:00:01"]
[BlackClock "0:00:13"]

1. e4 {[%clk 0:03:00]}  Nc6 {[%clk 0:02:56]} 2. Nf3 {[%clk 0:02:54]}  d6 {[%clk 0:02:55]} 3. d4 {[%clk 0:02:53]}  Bg4 {[%clk 0:02:54]} 4. d5 {[%clk 0:02:46]}  Ne5 {[%clk 0:02:54]} 5. Be2 {[%clk 0:02:34]}  Bxf3 {[%clk 0:02:45]} 6. Bxf3 {[%clk 0:02:33]}  g6 {[%clk 0:02:42]} 7. Be2 {[%clk 0:02:30]}  Bg7 {[%clk 0:02:41]} 8. Be3 {[%clk 0:02:24]}  h5 {[%clk 0:02:38]} 9. Nc3 {[%clk 0:02:21]}  a6 {[%clk 0:02:35]} 10. Bd4 {[%clk 0:02:19]}  Nf6 {[%clk 0:02:13]} 11. f4 {[%clk 0:02:12]}  Neg4 {[%clk 0:02:09]} 12. Bf3 {[%clk 0:01:42]}  e5 {[%clk 0:01:22]} 13. dxe6 {[%clk 0:01:31]}  fxe6 {[%clk 0:01:22]} 14. e5 {[%clk 0:01:15]}  dxe5 {[%clk 0:01:22]} 15. fxe5 {[%clk 0:01:11]}  Nd7 {[%clk 0:00:59]} 16. Bxg4 {[%clk 0:00:51]}  Qh4+ {[%clk 0:00:57]} 17. g3 {[%clk 0:00:46]}  Qxg4 {[%clk 0:00:57]} 18. Qxg4 {[%clk 0:00:43]}  hxg4 {[%clk 0:00:58]} 19. O-O-O {[%clk 0:00:42]}  O-O-O {[%clk 0:00:53]} 20. Rde1 {[%clk 0:00:33]}  c5 {[%clk 0:00:52]} 21. Bf2 {[%clk 0:00:25]}  Bxe5 {[%clk 0:00:48]} 22. Ne4 {[%clk 0:00:25]}  b6 {[%clk 0:00:45]} 23. Ng5 {[%clk 0:00:23]}  Rdf8 {[%clk 0:00:45]} 24. Be3 {[%clk 0:00:21]}  Rf6 {[%clk 0:00:42]} 25. Bd2 {[%clk 0:00:10]}  Rf2 {[%clk 0:00:37]} 26. Rxe5 {[%clk 0:00:08]}  Nxe5 {[%clk 0:00:35]} 27. Bc3 {[%clk 0:00:08]}  Rf5 {[%clk 0:00:19]} 28. Bxe5 {[%clk 0:00:07]}  Rxe5 {[%clk 0:00:19]} 29. Nf7 {[%clk 0:00:07]}  Reh5 {[%clk 0:00:18]} 30. Nxh8 {[%clk 0:00:07]}  Rxh8 {[%clk 0:00:18]} 31. Kd2 {[%clk 0:00:07]}  Rf8 {[%clk 0:00:17]} 32. Ke2 {[%clk 0:00:05]}  Kc7 {[%clk 0:00:15]} 33. Rd1 {[%clk 0:00:03]}  Rh8 {[%clk 0:00:15]} 34. Rh1 {[%clk 0:00:03]}  Kc6 {[%clk 0:00:15]} 35. Ke3 {[%clk 0:00:03]}  g5 {[%clk 0:00:14]} 36. Ke4 {[%clk 0:00:01]}  Rd8 {[%clk 0:00:13]} 0-1


[Site "https://www.chess.com"]

[Event "Titled Tuesday Blitz February 07 Early 2023"]
[White "Iskusnyh, Sergei"]
[Black "Gutkin, Ilya"]
[WhiteFideId "4120027"]
[BlackFideId "16203470"]
[WhiteElo "2440"]
[BlackElo "2273"]
[Result "1-0"]
[Round "07"]
[TimeControl "180+2"]
[Date "2023.02.07"]
[WhiteClock "0:00:15"]
[BlackClock "0:00:05"]

1. d4 {[%clk 0:03:00]}  e6 {[%clk 0:03:00]} 2. c4 {[%clk 0:02:59]}  Bb4+ {[%clk 0:03:00]} 3. Bd2 {[%clk 0:02:58]}  Qe7 {[%clk 0:03:00]} 4. g3 {[%clk 0:02:56]}  Nf6 {[%clk 0:02:59]} 5. Bg2 {[%clk 0:02:55]}  Nc6 {[%clk 0:02:57]} 6. e3 {[%clk 0:02:53]}  Bxd2+ {[%clk 0:02:52]} 7. Qxd2 {[%clk 0:02:52]}  d6 {[%clk 0:02:50]} 8. Nc3 {[%clk 0:02:50]}  O-O {[%clk 0:02:36]} 9. Nge2 {[%clk 0:02:48]}  e5 {[%clk 0:02:34]} 10. h3 {[%clk 0:02:47]}  exd4 {[%clk 0:01:44]} 11. exd4 {[%clk 0:02:44]}  Bf5 {[%clk 0:01:32]} 12. O-O {[%clk 0:02:33]}  Ne4 {[%clk 0:01:31]} 13. Qe3 {[%clk 0:02:20]}  Nxc3 {[%clk 0:01:17]} 14. Nxc3 {[%clk 0:02:13]}  Qxe3 {[%clk 0:01:12]} 15. fxe3 {[%clk 0:02:13]}  Bd3 {[%clk 0:01:13]} 16. Rfc1 {[%clk 0:01:49]}  Bxc4 {[%clk 0:01:05]} 17. b3 {[%clk 0:01:17]}  Ba6 {[%clk 0:01:05]} 18. Nd5 {[%clk 0:01:16]}  Rfc8 {[%clk 0:00:29]} 19. b4 {[%clk 0:00:58]}  Kf8 {[%clk 0:00:20]} 20. a4 {[%clk 0:00:57]}  Bd3 {[%clk 0:00:19]} 21. Rc3 {[%clk 0:00:49]}  Bf5 {[%clk 0:00:17]} 22. b5 {[%clk 0:00:46]}  Na5 {[%clk 0:00:12]} 23. Nxc7 {[%clk 0:00:46]}  Rab8 {[%clk 0:00:12]} 24. Rac1 {[%clk 0:00:45]}  Bd7 {[%clk 0:00:08]} 25. g4 {[%clk 0:00:39]}  b6 {[%clk 0:00:08]} 26. Kf2 {[%clk 0:00:36]}  h6 {[%clk 0:00:06]} 27. Bd5 {[%clk 0:00:28]}  Ke7 {[%clk 0:00:06]} 28. e4 {[%clk 0:00:22]}  f6 {[%clk 0:00:05]} 29. Ke3 {[%clk 0:00:21]}  Kd8 {[%clk 0:00:05]} 30. Ne6+ {[%clk 0:00:17]}  Bxe6 {[%clk 0:00:05]} 31. Bxe6 {[%clk 0:00:18]}  Rxc3+ {[%clk 0:00:05]} 32. Rxc3 {[%clk 0:00:18]}  Ke7 {[%clk 0:00:05]} 33. Rc7+ {[%clk 0:00:15]} 1-0


[Site "https://www.chess.com"]

[Event "Titled Tuesday Blitz February 07 Early 2023"]
[White "Pein, Jonathan"]
[Black "Tan, Zhongyi"]
[WhiteFideId "417092"]
[BlackFideId "8603642"]
[WhiteElo "2265"]
[BlackElo "2517"]
[Result "0-1"]
[Round "07"]
[TimeControl "180+2"]
[Date "2023.02.07"]
[WhiteClock "0:00:04"]
[BlackClock "0:00:08"]

1. e4 {[%clk 0:03:00]}  c5 {[%clk 0:02:58]} 2. g3 {[%clk 0:03:01]}  Nc6 {[%clk 0:02:57]} 3. Bg2 {[%clk 0:03:01]}  g6 {[%clk 0:02:56]} 4. Ne2 {[%clk 0:03:02]}  Bg7 {[%clk 0:02:56]} 5. O-O {[%clk 0:03:02]}  e6 {[%clk 0:02:56]} 6. c3 {[%clk 0:03:02]}  Nge7 {[%clk 0:02:55]} 7. d4 {[%clk 0:03:02]}  cxd4 {[%clk 0:02:51]} 8. cxd4 {[%clk 0:03:03]}  d5 {[%clk 0:02:51]} 9. e5 {[%clk 0:03:04]}  b6 {[%clk 0:02:50]} 10. Nd2 {[%clk 0:03:04]}  Ba6 {[%clk 0:02:50]} 11. Nf3 {[%clk 0:03:04]}  h6 {[%clk 0:02:45]} 12. Re1 {[%clk 0:03:02]}  O-O {[%clk 0:02:44]} 13. Qa4 {[%clk 0:02:57]}  Bc4 {[%clk 0:02:35]} 14. b3 {[%clk 0:02:53]}  b5 {[%clk 0:02:35]} 15. Qa3 {[%clk 0:02:51]}  Bxe2 {[%clk 0:02:26]} 16. Rxe2 {[%clk 0:02:50]}  Nf5 {[%clk 0:02:26]} 17. Qb2 {[%clk 0:02:40]}  Qb6 {[%clk 0:02:25]} 18. Be3 {[%clk 0:02:26]}  Rfc8 {[%clk 0:02:23]} 19. Rc1 {[%clk 0:02:23]}  Nb4 {[%clk 0:02:22]} 20. Rxc8+ {[%clk 0:02:11]}  Rxc8 {[%clk 0:02:23]} 21. a3 {[%clk 0:02:12]}  Nd3 {[%clk 0:01:42]} 22. Qd2 {[%clk 0:02:06]}  Nxe3 {[%clk 0:01:40]} 23. Rxe3 {[%clk 0:01:42]}  Nc1 {[%clk 0:01:40]} 24. Bf1 {[%clk 0:01:35]}  Qc6 {[%clk 0:01:35]} 25. g4 {[%clk 0:01:19]}  Bf8 {[%clk 0:01:31]} 26. Qa5 {[%clk 0:01:18]}  a6 {[%clk 0:01:31]} 27. a4 {[%clk 0:01:14]}  Qc2 {[%clk 0:00:53]} 28. Qxa6 {[%clk 0:01:05]}  bxa4 {[%clk 0:00:44]} 29. bxa4 {[%clk 0:00:58]}  Rc3 {[%clk 0:00:41]} 30. Ne1 {[%clk 0:00:23]}  Qb3 {[%clk 0:00:28]} 31. Rxc3 {[%clk 0:00:19]}  Qxc3 {[%clk 0:00:29]} 32. Nd3 {[%clk 0:00:12]}  Nb3 {[%clk 0:00:25]} 33. Nf4 {[%clk 0:00:11]}  Nxd4 {[%clk 0:00:22]} 34. Qd3 {[%clk 0:00:08]}  Nf3+ {[%clk 0:00:13]} 35. Kh1 {[%clk 0:00:05]}  Qe1 {[%clk 0:00:10]} 36. Kg2 {[%clk 0:00:02]}  Nxe5 {[%clk 0:00:07]} 37. Qe3 {[%clk 0:00:01]}  Qxe3 {[%clk 0:00:06]} 38. fxe3 {[%clk 0:00:02]}  Nxg4 {[%clk 0:00:07]} 39. Kg3 {[%clk 0:00:02]}  Nxe3 {[%clk 0:00:06]} 40. Bb5 {[%clk 0:00:02]}  Bc5 {[%clk 0:00:06]} 41. a5 {[%clk 0:00:02]}  Nf5+ {[%clk 0:00:06]} 42. Kf3 {[%clk 0:00:02]}  Nd4+ {[%clk 0:00:06]} 43. Kg3 {[%clk 0:00:02]}  Nxb5 {[%clk 0:00:07]} 44. a6 {[%clk 0:00:02]}  Nd4 {[%clk 0:00:07]} 45. Nd3 {[%clk 0:00:03]}  Nf5+ {[%clk 0:00:08]} 46. Kf4 {[%clk 0:00:03]}  Ba7 {[%clk 0:00:09]} 47. Ke5 {[%clk 0:00:04]}  Kg7 {[%clk 0:00:09]} 48. Nb4 {[%clk 0:00:04]}  d4 {[%clk 0:00:09]} 49. Nc6 {[%clk 0:00:04]}  Bb6 {[%clk 0:00:09]} 50. Ke4 {[%clk 0:00:03]}  Nd6+ {[%clk 0:00:09]} 51. Ke5 {[%clk 0:00:03]}  Nb5 {[%clk 0:00:09]} 52. Ne7 {[%clk 0:00:02]}  d3 {[%clk 0:00:09]} 53. Nc6 {[%clk 0:00:02]}  d2 {[%clk 0:00:09]} 54. a7 {[%clk 0:00:03]}  Nxa7 {[%clk 0:00:08]} 55. Nd8 {[%clk 0:00:04]}  Bxd8 {[%clk 0:00:08]} 0-1


[Site "https://www.chess.com"]

[Event "Titled Tuesday Blitz February 07 Early 2023"]
[White "Vagman, Roy"]
[Black "Koellner, Ruben Gideon"]
[WhiteFideId "2828995"]
[BlackFideId "12993093"]
[WhiteElo "2273"]
[BlackElo "2426"]
[Result "0-1"]
[Round "07"]
[TimeControl "180+2"]
[Date "2023.02.07"]
[WhiteClock "0:02:25"]
[BlackClock "0:02:52"]

1. e4 {[%clk 0:03:00]}  d6 {[%clk 0:03:00]} 2. d4 {[%clk 0:02:57]}  Nf6 {[%clk 0:03:00]} 3. Nc3 {[%clk 0:02:55]}  e5 {[%clk 0:03:00]} 4. dxe5 {[%clk 0:02:55]}  dxe5 {[%clk 0:03:01]} 5. Qxd8+ {[%clk 0:02:54]}  Kxd8 {[%clk 0:03:02]} 6. Bc4 {[%clk 0:02:55]}  Be6 {[%clk 0:03:03]} 7. Bxe6 {[%clk 0:02:55]}  fxe6 {[%clk 0:03:04]} 8. f3 {[%clk 0:02:43]}  Bd6 {[%clk 0:03:04]} 9. Be3 {[%clk 0:02:42]}  Ke7 {[%clk 0:03:04]} 10. O-O-O {[%clk 0:02:43]}  Nc6 {[%clk 0:03:04]} 11. Nb1 {[%clk 0:02:42]}  a6 {[%clk 0:03:04]} 12. c3 {[%clk 0:02:43]}  b5 {[%clk 0:03:04]} 13. Ne2 {[%clk 0:02:44]}  Rhb8 {[%clk 0:03:04]} 14. a3 {[%clk 0:02:44]}  a5 {[%clk 0:03:05]} 15. b4 {[%clk 0:02:41]}  axb4 {[%clk 0:03:05]} 16. axb4 {[%clk 0:02:41]}  Ra2 {[%clk 0:03:04]} 17. Rd2 {[%clk 0:02:40]}  Rba8 {[%clk 0:03:03]} 18. Rxa2 {[%clk 0:02:40]}  Rxa2 {[%clk 0:03:04]} 19. Rd1 {[%clk 0:02:40]}  Rxe2 {[%clk 0:03:03]} 20. Rd3 {[%clk 0:02:27]}  Rxg2 {[%clk 0:03:01]} 21. Nd2 {[%clk 0:02:26]}  Rxh2 {[%clk 0:03:00]} 22. Nb3 {[%clk 0:02:26]}  Nd7 {[%clk 0:02:57]} 23. Na5 {[%clk 0:02:26]}  Nxa5 {[%clk 0:02:55]} 24. bxa5 {[%clk 0:02:26]}  Ra2 {[%clk 0:02:56]} 25. Bg5+ {[%clk 0:02:25]}  Nf6 {[%clk 0:02:56]} 26. f4 {[%clk 0:02:26]}  exf4 {[%clk 0:02:52]} 27. c4 {[%clk 0:02:25]}  bxc4 {[%clk 0:02:52]} 0-1


[Site "https://www.chess.com"]

[Event "Titled Tuesday Blitz February 07 Early 2023"]
[White "Aarav Dengla"]
[Black "Jain Kashish Manoj"]
[WhiteFideId "45059756"]
[BlackFideId "35081098"]
[WhiteElo "2343"]
[BlackElo "2375"]
[Result "1-0"]
[Round "07"]
[TimeControl "180+2"]
[Date "2023.02.07"]
[WhiteClock "0:00:20"]
[BlackClock "0:00:03"]

1. e4 {[%clk 0:03:00]}  e6 {[%clk 0:02:58]} 2. d4 {[%clk 0:03:00]}  d5 {[%clk 0:02:55]} 3. exd5 {[%clk 0:02:40]}  exd5 {[%clk 0:02:54]} 4. Nf3 {[%clk 0:02:39]}  Bd6 {[%clk 0:02:54]} 5. c4 {[%clk 0:02:37]}  dxc4 {[%clk 0:02:51]} 6. Bxc4 {[%clk 0:02:36]}  Nf6 {[%clk 0:02:52]} 7. O-O {[%clk 0:02:35]}  O-O {[%clk 0:02:52]} 8. Nc3 {[%clk 0:02:34]}  c6 {[%clk 0:02:49]} 9. h3 {[%clk 0:02:34]}  Nbd7 {[%clk 0:02:49]} 10. Bg5 {[%clk 0:02:34]}  Nb6 {[%clk 0:02:48]} 11. Bb3 {[%clk 0:02:33]}  h6 {[%clk 0:02:47]} 12. Bh4 {[%clk 0:02:33]}  Bf5 {[%clk 0:02:44]} 13. Ne5 {[%clk 0:02:31]}  Be7 {[%clk 0:02:39]} 14. Qf3 {[%clk 0:02:29]}  Bh7 {[%clk 0:02:34]} 15. Bxf6 {[%clk 0:02:14]}  Bxf6 {[%clk 0:02:34]} 16. Qh5 {[%clk 0:02:15]}  Qc7 {[%clk 0:02:07]} 17. Rad1 {[%clk 0:02:03]}  Rad8 {[%clk 0:02:06]} 18. Rfe1 {[%clk 0:01:59]}  a5 {[%clk 0:01:58]} 19. Re3 {[%clk 0:01:43]}  Bxe5 {[%clk 0:01:00]} 20. dxe5 {[%clk 0:01:26]}  Rxd1+ {[%clk 0:01:01]} 21. Nxd1 {[%clk 0:01:26]}  a4 {[%clk 0:01:01]} 22. Bxf7+ {[%clk 0:00:56]}  Qxf7 {[%clk 0:00:57]} 23. Qh4 {[%clk 0:00:55]}  Nd5 {[%clk 0:00:37]} 24. Rf3 {[%clk 0:00:55]}  Qe7 {[%clk 0:00:33]} 25. Rxf8+ {[%clk 0:00:49]}  Kxf8 {[%clk 0:00:34]} 26. Qxa4 {[%clk 0:00:49]}  Qxe5 {[%clk 0:00:29]} 27. Qa8+ {[%clk 0:00:48]}  Qe8 {[%clk 0:00:30]} 28. Qa3+ {[%clk 0:00:47]}  Qe7 {[%clk 0:00:26]} 29. Qf3+ {[%clk 0:00:39]}  Kg8 {[%clk 0:00:26]} 30. Kh2 {[%clk 0:00:39]}  Qe5+ {[%clk 0:00:20]} 31. Kg1 {[%clk 0:00:26]}  Qe1+ {[%clk 0:00:18]} 32. Kh2 {[%clk 0:00:26]}  Be4 {[%clk 0:00:17]} 33. Qg4 {[%clk 0:00:24]}  Nf6 {[%clk 0:00:15]} 34. Qe6+ {[%clk 0:00:20]}  Kh7 {[%clk 0:00:14]} 35. Nc3 {[%clk 0:00:20]}  b5 {[%clk 0:00:06]} 36. f3 {[%clk 0:00:20]}  b4 {[%clk 0:00:03]} 37. Nxe4 {[%clk 0:00:20]} 1-0


[Site "https://www.chess.com"]